Cogmind - Beta 16 @@@ ROGUE MODE // 2025.11.29 @ 22:12:59 Player: whodovoodoo Result: Destroyed by G-34 Mercenary with Small Laser Performance ------------- Evolutions (1) 500 Regions Visited (4) 800 Robots Destroyed (4) 20 Value Destroyed (74) 74 Prototype IDs (0) 0 Alien Tech Used (0) 0 Bonus (0) 0 TOTAL SCORE: 1394 Bonus ------- None Cogmind --------- Core Integrity 0/400 Matter 300/300 Energy 100/100 System Corruption 0% Temperature Cool (6) Movement Core (200) Ox3 Location -9/Storage Parts ------- > --- POWER (1) -------- (None) > --- PROPULSION (2) --- (None) > --- UTILITY (3) ------ Medium Storage Unit > --- WEAPON (3) ------- (None) > --- INVENTORY (10) --- Light Ion Engine Light Ion Engine Aluminum Leg Aluminum Leg Compact Wheel Compact Wheel Mining Laser Peak State ------------ > --- POWER ------------ Ion Engine > --- PROPULSION ------- Wheel Wheel > --- UTILITY ---------- Medium Storage Unit Improved Terrain Scanner Seismic Detector > --- WEAPON ----------- Medium Laser Medium Laser Small Laser > --- INVENTORY -------- Light Ion Engine Light Ion Engine Aluminum Leg Aluminum Leg Wheel Compact Wheel Compact Wheel Mining Laser [Rating: 11] Favorites ----------- Power Ion Engine Engine Ion Engine Propulsion Wheel Wheel Wheel Utility Seismic Detector Device Seismic Detector Storage Medium Storage Unit Weapon Medium Laser Energy Gun Medium Laser Build | -11 -10 -10 -9 -9 ------- Run | Yrd Mat Min Mat Sto Slots Evolved 2 | . . . 2 . Power . | . . . . . Propulsion . | . . . . . Utility 1 | . . . 1 . Weapon 1 | . . . 1 . Parts Attached 11 | 7 1 . . 3 Power 1 | 1 . . . . Engine 1 | 1 . . . . Core . | . . . . . Reactor . | . . . . . Propulsion 3 | 2 . . . 1 Treads . | . . . . . Leg . | . . . . . Wheel 3 | 2 . . . 1 Hover . | . . . . . Flight . | . . . . . Utility 4 | 2 1 . . 1 Device 2 | 1 . . . 1 Storage 2 | 1 1 . . . Processor . | . . . . . Hackware . | . . . . . Protection . | . . . . . Artifact . | . . . . . Weapon 3 | 2 . . . 1 Energy Gun 3 | 2 . . . 1 Energy Cannon . | . . . . . Ballistic Gun . | . . . . . Ballistic Cannon . | . . . . . Launcher . | . . . . . Special Weapon . | . . . . . Impact Weapon . | . . . . . Slashing Weapon . | . . . . . Piercing Weapon . | . . . . . Special Melee Weapon . | . . . . . Unidentified Prototypes . | . . . . . Parts Lost 8 | . . . . 8 Power . | . . . . . Propulsion 3 | . . . . 3 Utility 2 | . . . . 2 Weapon 3 | . . . . 3 Highest Loss Streak 8 | . . . . 8 To Critical Strikes . | . . . . . Average Backups 7 | 3 8 10 10 7 Power 1 | . 2 2 2 2 Propulsion 4 | 1 3 5 5 4 Utility . | . 1 1 1 . Weapon 1 | 1 2 2 2 1 Tool/Special . | . . . . . Unused Backups 7 | . . . . 7 Power 2 | . . . . 2 Propulsion 4 | . . . . 4 Utility . | . . . . . Weapon 1 | . . . . 1 Tool/Special . | . . . . . Average Slot Usage (%) 94 | . 100 100 77 88 Engine 12 | . 14 14 11 10 Wheel 23 | . 28 28 22 18 Device 16 | . 14 14 11 20 Storage 12 | . 14 14 11 11 Energy Gun 27 | . 28 28 22 28 Peak Build Rating 11 | 8 8 8 8 11 Average Rating 8 | 5 8 8 8 9 On Entrance 6 | . 8 8 8 8 Avg Prop Armor Cover (%) . | . . . . . Naked Turns . | . . . . . Heaviest Build 22 | 15 20 20 20 22 Greatest Support 20 | 20 20 20 20 20 Greatest Overweight (x) 6 | . . . . 6 Average Overweight (x) . | . . . . 1 Largest Inventory Capacity 10 | 8 10 10 10 10 Average Capacity 9 | 7 8 10 10 10 Most Carried 10 | 8 10 10 10 9 Average Carried 8 | 3 8 10 10 7 Final Capacity 10 | 8 10 10 10 10 Final Carried 10 | 8 10 10 10 7 Class Distribution -------------------- 68% | Mutant 31% | Skirmisher Dominant Class ---------------- Mutant | -10/Materials Mutant | -10/Mines Mutant | -9/Materials Skirmisher | -9/Storage Resources | -11 -10 -10 -9 -9 ----------- Run | Yrd Mat Min Mat Sto Matter Collected 270 | 270 . . . . Remotely . | . . . . . Salvage Created 170 | 125 . . . 45 Parts 9 | 6 . . . 3 Haulers Intercepted . | . . . . . Recyclers Shooed . | . . . . . Parts Field Recycled . | . . . . . Retrieved Matter . | . . . . . Parts Self-Destructed . | . . . . . Prevented . | . . . . . Parts Restored . | . . . . . Kills | -11 -10 -10 -9 -9 ------- Run | Yrd Mat Min Mat Sto Combat Hostiles Destroyed 1 | . . . . 1 Guns 1 | . . . . 1 Classes Destroyed 3 | 2 . . . 1 Tunneler 2 | 2 . . . . Recycler 1 | 1 . . . . Grunt 1 | . . . . 1 Best Kill Streak 2 | 2 . . . 1 Combat Bots Only 1 | . . . . 1 Max Kills in Single Turn 1 | 1 . . . 1 Gunslinging . | . . . . . Exploded . | . . . . . Melee . | . . . . . Uniques/NPCs Destroyed . | . . . . . Combat | -11 -10 -10 -9 -9 -------- Run | Yrd Mat Min Mat Sto Hostile Shots Fired 89 | . . . . 89 Missed 19 | . . . . 19 Hits 70 | . . . . 70 Melee 2 | . . . . 2 Projectile 68 | . . . . 68 Critical Strikes 1 | . . . . 1 Damage Taken 980 | . . . . 980 Core 401 | . . . . 401 Absorbed by Shields . | . . . . . Core Remaining (%) 100 | 100 . 100 . . Volleys Fired 15 | 11 . . . 4 Largest 3 | 2 . . . 3 Hottest 140 | 100 . . . 140 Shots Fired 34 | 22 . . . 12 Gun 34 | 22 . . . 12 Cannon . | . . . . . Launcher . | . . . . . Special . | . . . . . Kinetic . | . . . . . Thermal 34 | 22 . . . 12 Explosive . | . . . . . Electromagnetic . | . . . . . Robot Hit Streak 5 | 4 . . . 5 Robot Miss Streak 2 | 2 . . . 2 Penetration Max . | . . . . . Secondary Targets 1 | . . . . 1 Max Gunslinging Chain 1 | . . . . 1 Shots Hit Robots 22 | 13 . . . 9 Core Hits 9 | 4 . . . 5 Critical Kills . | . . . . . Critical Parts Destroyed . | . . . . . Critical Strikes 2 | 2 . . . . Burn 2 | 2 . . . . Melee Attacks . | . . . . . Impact . | . . . . . Slashing . | . . . . . Piercing . | . . . . . Sneak Attacks . | . . . . . Combat Hostiles . | . . . . . Follow-up Attacks . | . . . . . Damage Inflicted 612 | 163 . . . 449 Guns 249 | 163 . . . 86 Cannons . | . . . . . Explosions 363 | . . . . 363 Melee . | . . . . . Ramming . | . . . . . Kinetic . | . . . . . Thermal 249 | 163 . . . 86 Explosive 363 | . . . . 363 Electromagnetic . | . . . . . Impact . | . . . . . Slashing . | . . . . . Piercing . | . . . . . Highest Corruption . | . . . . . Average Corruption . | . . . . . Corruption Purged . | . . . . . Corruption Blocked . | . . . . . Overload Shots . | . . . . . Overflow Damage . | . . . . . Projectiles . | . . . . . Explosions . | . . . . . Melee . | . . . . . Knockbacks . | . . . . . Impact . | . . . . . Kinetic . | . . . . . Secondary . | . . . . . Self-Inflicted Damage 79 | . . . . 79 Shots 1 | . . . . 1 Rammed . | . . . . . Targets Rammed . | . . . . . Kicked . | . . . . . Crushed . | . . . . . Highest Temperature 328 | 156 . . . 328 Average Temperature 121 | 72 . . . 201 Received Heat Transfer 375 | . . . . 375 Siege Activations . | . . . . . Martial Activations . | . . . . . Shielding Activations . | . . . . . Robots Disrupted . | . . . . . Combat Hostiles . | . . . . . Robots Corrupted . | . . . . . Combat Hostiles . | . . . . . Parts Fried . | . . . . . Impact Corruptions . | . . . . . Robots Melted . | . . . . . Combat Hostiles . | . . . . . Parts Melted 1 | 1 . . . . Heat Transferred 864 | 629 . . . 235 Parts Sabotaged . | . . . . . Parts Stolen . | . . . . . Parts Stripped . | . . . . . Power Chain Reactions . | . . . . . Alert | -11 -10 -10 -9 -9 ------- Run | Yrd Mat Min Mat Sto Maximum Alert Level . | . . . . . Low Security (%) 100 | 100 100 100 100 100 Level 1 . | . . . . . Level 2 . | . . . . . Level 3 . | . . . . . Level 4 . | . . . . . Level 5 . | . . . . . High Security . | . . . . . Max Security . | . . . . . Peak Influence 168 | 5 . . . 168 Initial . | . . . . . Average 16 | 1 . . . 42 Influence Increases 243 | 15 . . . 228 Destroy 0b10 Robot/C 20 | . . . . 20 Destroy 0b10 Robot/NC 15 | 15 . . . . Destroy Leader 10 | . . . . 10 Successful Hack 9 | . . . . 9 Disable Machine 30 | . . . . 30 Destroy Structure 24 | . . . . 24 Partial Spotted 15 | . . . . 15 Lose Combat Pursuer 120 | . . . . 120 Influence Decreases 150 | 15 . . . 135 Time Decay 70 | 15 . . . 55 Lost Part 80 | . . . . 80 Squads Dispatched 3 | . 1 . . 2 Investigation 2 | . 1 . . 1 Extermination . | . . . . . Reinforcement 1 | . . . . 1 Assault . | . . . . . Garrison . | . . . . . Intercept . | . . . . . Searches Triggered . | . . . . . Construction Impeded . | . . . . . Haulers Reinforced . | . . . . . Active Scanning Responses . | . . . . . Cargo Convoy Interrupts . | . . . . . Stealth | -11 -10 -10 -9 -9 --------- Run | Yrd Mat Min Mat Sto Distress Signals 1 | . . . . 1 Communications Jammed . | . . . . . Distress Signals . | . . . . . Times Spotted 19 | . . . . 19 Peak Tracking Total 11 | . . . . 11 Tactical Retreats 3 | . . . . 3 Traps | -11 -10 -10 -9 -9 ------- Run | Yrd Mat Min Mat Sto Traps Triggered 1 | . . . . 1 Indirectly . | . . . . . Trap Hack Attempts . | . . . . . Triggered . | . . . . . Disarmed . | . . . . . Reprogrammed . | . . . . . Reused . | . . . . . Traps Extracted . | . . . . . Installed . | . . . . . Triggered . | . . . . . Machines | -11 -10 -10 -9 -9 ---------- Run | Yrd Mat Min Mat Sto Machines Disabled 2 | . . . . 2 Max in Single Turn 2 | . . . . 2 Machines Repaired . | . . . . . Machines Dismantled . | . . . . . Machines Sabotaged . | . . . . . Overloaded Fab Kills . | . . . . . Hacking | -11 -10 -10 -9 -9 --------- Run | Yrd Mat Min Mat Sto Machines Accessed 6 | . 2 . . 4 Terminals 6 | . 2 . . 4 Fabricators . | . . . . . Repair Stations . | . . . . . Recycling Units . | . . . . . Scanalyzers . | . . . . . Garrison Access . | . . . . . Total Hacks 9 | . 3 . . 6 Successful 1 | . . . . 1 Failed 8 | . 3 . . 5 Catastrophic 3 | . 1 . . 2 Database Lockouts . | . . . . . Manual 6 | . 1 . . 5 Terminals 9 | . 3 . . 6 Fabricators . | . . . . . Repair Stations . | . . . . . Recycling Units . | . . . . . Scanalyzers . | . . . . . Garrison Access . | . . . . . Terminal Hacks 1 | . . . . 1 Level Access Points 1 | . . . . 1 Fabricator Hacks . | . . . . . Repair Station Hacks . | . . . . . Recycling Unit Hacks . | . . . . . Scanalyzer . | . . . . . Garrison Access Hacks . | . . . . . Unauthorized Hacks . | . . . . . Terminals . | . . . . . Fabricators . | . . . . . Repair Stations . | . . . . . Recycling Units . | . . . . . Scanalyzers . | . . . . . Garrison Access . | . . . . . Data Cores Recovered . | . . . . . Used . | . . . . . Hacking Detections 6 | . 2 . . 4 Full Trace Events 1 | . 1 . . . Feedback Events . | . . . . . Feedback Blocked . | . . . . . Robot Schematics Acquired . | . . . . . Robots Built . | . . . . . Authchips . | . . . . . Time . | . . . . . Total Robot Build Rating . | . . . . . Part Schematics Acquired . | . . . . . Parts Built . | . . . . . Authchips . | . . . . . Time . | . . . . . Total Part Build Rating . | . . . . . Part Studies Acquired . | . . . . . Parts Repaired . | . . . . . Time . | . . . . . Parts Recycled . | . . . . . Recycled Matter . | . . . . . Retrieved Matter . | . . . . . Retrieved Components . | . . . . . Parts Scanalyzed . | . . . . . Part Schematics Acquired . | . . . . . Parts Damaged . | . . . . . Bothacking | -11 -10 -10 -9 -9 ------------ Run | Yrd Mat Min Mat Sto Used RIF Installer . | . . . . . Robots Hacked . | . . . . . Non-combat . | . . . . . Combat . | . . . . . Robot Hacks Applied . | . . . . . Relay Couplers Released . | . . . . . Fabnet Peak Effective % . | . . . . . Robots Rewired . | . . . . . Allies Hacked . | . . . . . Hacks Repelled . | . . . . . Allies | -11 -10 -10 -9 -9 -------- Run | Yrd Mat Min Mat Sto Total Allies . | . . . . . Largest Group . | . . . . . Highest-Rated Group . | . . . . . Highest-Rated Ally . | . . . . . Total Orders . | . . . . . Ally Attacks . | . . . . . Total Damage . | . . . . . Kills . | . . . . . Allies Corrupted . | . . . . . Allies Melted . | . . . . . Intel | -11 -10 -10 -9 -9 ------- Run | Yrd Mat Min Mat Sto Active Infowar (turns) 479 | 31 64 180 13 191 Terrain 188 | . . . . 188 Seismic 479 | 31 64 180 13 191 Robot Analysis Total . | . . . . . Derelict Logs Recovered 1 | . . 1 . . Drone Launches . | . . . . . Drone Recoveries . | . . . . . Exploration | -11 -10 -10 -9 -9 ------------- Run | Yrd Mat Min Mat Sto Turns Passed 563 | 96 64 180 13 210 Spaces Moved 554 | 58 76 215 16 189 Core 18 | 6 . . . 12 Treads . | . . . . . Legs . | . . . . . Wheels 536 | 52 76 215 16 177 Hover . | . . . . . Flight . | . . . . . Fastest Speed 50 | 50 80 80 80 95 Average Speed 87 | 76 80 80 80 102 Slowest Speed 350 | 80 80 80 80 350 Overloaded Moves . | . . . . . Propulsion Burnouts . | . . . . . Robots Hopped . | . . . . . Potential Cave-ins . | . . . . . Cave-ins Triggered . | . . . . . Exploration Rate (%) 23 | 4 24 51 4 32 Regions Visited 4 Branch Regions 2 Pre-discovered Areas . | . . . . . Known Exits Taken . | . . . . . Unknown Exits Taken 4 | 1 1 1 1 . Scrap Searched . | . . . . . Spaces Dug . | . . . . . Terrain Destroyed 25 | . . . . 25 Melee . | . . . . . Projectile . | . . . . . AOE 25 | . . . . 25 Terrain Rammed . | . . . . . Walls Destroyed . | . . . . . Machines Disabled . | . . . . . Actions | -11 -10 -10 -9 -9 --------- Run | Yrd Mat Min Mat Sto Total 595 | 83 79 222 15 196 Wait 8 | . . 8 . . Move 550 | 57 75 214 15 189 Hop . | . . . . . Pick Up 10 | 8 2 . . . Fast Attach 7 | 7 . . . . Attach 3 | . . . . 3 Detach . | . . . . . Swap 1 | . 1 . . . Drop 1 | . 1 . . . Fire 15 | 11 . . . 4 Melee . | . . . . . Ram . | . . . . . Kick . | . . . . . Crush . | . . . . . Escape Stasis . | . . . . . Rewire . | . . . . . Trap . | . . . . . Miscellaneous . | . . . . . Route ------- -11/Scrapyard -10/Materials -10/Mines -9/Materials -9/Storage (discovered 1 exit: Mat) History --------- Turn | Location | Event 7 | -11/Scrapyard | Discovered new exit (range 15) 97 | -11/Scrapyard | Entered Materials 153 | -10/Materials | Discovered new exit (range 8) 161 | -10/Materials | Entered Mines 251 | -10/Mines | Received a Rocket Launcher from a helpful Derelict 315 | -10/Mines | Build established: Mutant 327 | -10/Mines | Learned Materials trap positions 334 | -10/Mines | Discovered new exit (range 10) 341 | -10/Mines | Entered Materials 341 | -9/Materials | Evolved 2 slots: Utility x1, Weapon x1 342 | -9/Materials | Loaded intel: 24 trap records 342 | -9/Materials | Discovered new exit (range 15) 354 | -9/Materials | Entered Storage 518 | -9/Storage | Identified exit to Materials 542 | -9/Storage | Core integrity fell below 50% 547 | -9/Storage | Core integrity fell below 20% 564 | -9/Storage | Destroyed by G-34 Mercenary with Small Laser Last Messages --------------- U-05 Engineer lays Concrete. G-34 Mercenary destroyed. Switching to secondary target: Y-45 Defender. Wheel destroyed. Compression Vault explodes. Terminal disabled. U-05 Engineer builds a Wall. Wheel destroyed. U-05 Engineer builds a Wall. Sml. Laser destroyed. Med. Laser destroyed. The unstable cave ceiling collapses. U-05 Engineer builds a Wall. Wheel destroyed. Med. Laser destroyed. Ion Engine severed. Imp. Terrain Scanner destroyed. U-05 Engineer builds a Door. Seismic Detector destroyed. U-05 Engineer builds a Wall. Map ----- +----------------------------------------------------+ | ?????#?# """"" """"" "#?????????????? | | ?????#?# """"" """"" ##?????????????? | | ?????#?# #??????#???????? | | ???????#######+###################### | | ????????# | | ?#????#?# | | ????????# | | ????????######/########### #####??? | | ???#??????# #?#??# "#?T???? | | ????##?##?# """" ##???# T#?????? | | ?????##???# "??"" ##???# "#?????? | | #######???# "???"" #???## %##?????? | | # ##??# ""???" #?#??# #??????? | | ##?# ""??" ###??# #??????? | | #?# """" ###### #??????? | | * #### + #??????? | | % # ################# #??????? | | [= # #?#????#??# #??????? | | *# """"" ##?#????#?# #??????? | | # """"" #?????????# #??????? | | # ##/### """"" ##???????## #??????? | | #### / g #?#??????## #??????? | | ???# ####g##+#??"???#??# #??????? | | #??# ### # #????#????# #??????? | | ?#?# a Tl# #???"?????# #??????? | | ?#?# ##### @# #???????### #??????? | | #??# #???## #?? ??????# #????"?? | | ???# #????# # ????? ??# #??????? | | ?###+###### #??? ?????# #??????? | | ?# # +?????????# #?? ???? | | #" " # #??? ? ???# #??????? | | #T "G" # ########### ###+##?? | | #" " " # | | ## + | | ?# """ # | | ## """ ### ####################### | | ?# """ #?# #?????????????????????? | | ?# #?# #?????????????????????? | | ?####### ##?#Y#?????????????????????? | | ???????###??#/#??#??????????????????? | | ?????????#?? ?????????????????????? | | ???????????? "?????????????????????? | | ???????????? "?????????????????????? | | ???????????? "?????????????????????? | | ???????????? ?????????????????????? | | ???????????? "?????????????????????? | | ???????????? ??????????????????????? | | ???????????? ??????????????????????? | | ???????????? ??????????????????????? | | ????????????#/??????????????????????? | +----------------------------------------------------+ Best States ------------- Heat Dissipation 28 Energy Generation 10 Energy Capacity 250 Matter Stores 300 Matter Capacity 300 Sight Range 16 Terrain Scan Range 16 Terrain Scan Density 10 Evasion (%) 44 Item Schematics ----------------- None Robot Schematics ------------------ None Fabricated ------------ Nothing Repaired ---------- Nothing Studied --------- None Alien Tech Used ----------------- None Achievements -------------- DATA ERROR: Steam Global Achievement% Deductive Reasoning Ghost 'Em Organ Harvest Challenges ------------ None Game ------ Seed whodovoodoo Manual? 1 Play Time 00:13:43 Cumulative 38.6 hours Start 2025.11.29 @ 21:55:40 End 2025.11.29 @ 22:12:59 Sessions 1 Manual Loads 0 Difficulty Rogue Special Mode None Game No. 36 Rogue 7 Adventurer 0 Explorer 29 Win Type - Total 0 Types 0/0/0/0/0/0/0/0/0/0 Lore% 4 Gallery% 25 Achievement% 12 Wizard Run 0 Options --------- Layout 1 ASCII 1 Keyboard 1 Movement Vi Keybinds 0 Fullscreen 1 Font 24/Proggy Map View 50x35 Zoom Use 0% Tactical HUD 0 Map Filters NONE Filters NONE Steam 1 RUN: 025e13db-d314-44b0-a121-862481094be4